{"text_format":"1","workbook":"xlsx","n_sheets":2,"sheets":["Tabelle2","Tabelle1"],"not_rendered":{"charts":0,"images":9,"macros":1,"external_links":0,"defined_names":1,"comments":0,"pivot_tables":0},"unopened":[],"bounds":{"document_bytes":16777216,"sheet_cells":100000,"rows_first":2000,"rows_last":500,"rows_between":2000,"halvings":0,"cell_chars":16384,"cell_head_chars":4096},"cells_cut":0,"cells_raw":0,"read":"whole","date_system":"1900"}

{"sheet":"Tabelle2","index":0,"n_rows":14,"n_cols":9,"rows_kept":14,"cut":false,"hidden":false,"merged":[]}
[]
[null,null,"Top","Left","Width","Height","Place","Zelle"]
[1,"TextBox 1",263.70001220703125,876.5999755859375,59.400001525878906,20.83149528503418,2,"I11"]
[2,"Picture 77",316.5,453.75,85.03936767578125,25.511810302734375,2,"D13"]
[3,"Picture 83",346.5,452.25,85.03936767578125,25.511810302734375,2,"D14",{"$f":"C6-C5","v":30}]
[4,"Picture 50",376.5,454.5,85.03936767578125,25.511810302734375,2,"D15",{"$f":"C7-C6","v":30}]
[5,"Picture 54",406.5,453.75,85.03936767578125,25.511810302734375,2,"D16",30.75]
[6,"Picture 81",437.25,454.5,85.03936767578125,25.511810302734375,2,"D17",30]
[7,"Picture 73",467.25,456,85.03936767578125,25.511810302734375,2,"D18",29.25]
[8,"Picture 60",496.5,456.75,85.03936767578125,25.511810302734375,2,"D19",31.5]
[9,"Picture 71",528,456.75,85.03936767578125,25.511810302734375,2,"D20",30.75]
[10,"Picture 67",558.75,458.25,79.572441101074219,25.511810302734375,2,"D21",29.25]
[11,"Picture 79",588,454.5,85.03936767578125,25.511810302734375,2,"D22",28.5]
[12,"Picture 75",616.5,454.5,85.03936767578125,25.511810302734375,2,"D23"]

{"sheet":"Tabelle1","index":1,"n_rows":60,"n_cols":8,"rows_kept":60,"cut":false,"hidden":false,"merged":[[0,0,0,7],[10,5,10,6],[2,2,2,7],[4,2,4,7],[5,2,5,7],[6,2,6,7],[7,2,7,7],[8,2,8,7],[3,2,3,7]]}
["Heißluft-Fritteuse Zeiten"]
["Sync = Beide Seiten gleich fertig",null,null,"Match = Beide Seiten Gericht gleich"]
["MAX CRISP",null,"= tiefgefrorene Speisen \n"]
["Air Fry",null,"= für knusprige Ergebnisse"]
["Roast           ","Braten"]
["Bake            ","Backen"]
["Reheat ","Aufwärmen"]
["Prove ",null,"= Teig gehen lassen"]
["Dehydrate ","Dörren"]
[]
["Art",null,null,null,"Stellung","Zeit",null,"Temp."]
[null,null,null,null,null,null,{"$f":"IF(F12=\"\",\"\",\" Min.\")","v":""}]
["Braten",null,null,null,null,null,""]
["Eier",null,"weich",null,null,7," Min.",170]
["Eier",null,"wachsweich",null,null,8," Min.",170]
["Eier",null,"hart",null,null,10," Min.",170]
["Ente",null,null,null,null,null,""]
["Hähnchen",null,null,null,null,50," Min.",190]
["Hähnchenschenkel frisch",null,null,null,"Heißluft-Frittieren","19-22"," Min.",200]
["Kartoffelecken",null,null,null,null,"18-17"," Min.",190]
["Pommes Sreifen gefroren",null,null,null,"Heißluft-Frittieren","20-22"," Min.",180]
["Pommes Wellen-",null,null,null,"Heißluft-Frittieren","14-16"," Min.",210]
["Semmel",null,null,null,null,8," Min.",180]
["AQA",null,null,null,null,null,""]
[null,null,null,null,null,null,""]
[null,null,null,null,null,null,""]
[null,null,null,null,null,null,""]
[null,null,null,null,null,null,""]
[null,null,null,null,null,null,""]
[null,null,null,null,null,null,""]
[null,null,null,null,null,null,""]
[null,null,null,null,null,null,""]
[null,null,null,null,null,null,""]
[null,null,null,null,null,null,""]
[null,null,null,null,null,null,""]
[null,null,null,null,null,null,""]
[null,null,null,null,null,null,""]
[null,null,null,null,null,null,""]
[null,null,null,null,null,null,""]
[null,null,null,null,null,null,""]
[null,null,null,null,null,null,""]
[null,null,null,null,null,null,""]
[null,null,null,null,null,null,""]
[null,null,null,null,null,null,""]
[null,null,null,null,null,null,""]
[null,null,null,null,null,null,""]
[null,null,null,null,null,null,""]
[null,null,null,null,null,null,""]
[null,null,null,null,null,null,""]
[null,null,null,null,null,null,""]
[null,null,null,null,null,null,{"$f":"IF(F51=\"\",\"\",\" Min.\")","v":""}]
[null,null,null,null,null,null,""]
[null,null,null,null,null,null,""]
[null,null,null,null,null,null,""]
[null,null,null,null,null,null,""]
[null,null,null,null,null,null,""]
[null,null,null,null,null,null,""]
[null,null,null,null,null,null,""]
[null,null,null,null,null,null,""]
[null,null,null,null,null,null,""]